[Event "Marienbad A2-GM 2024"]
[Site "Marianske Lazne"]
[Date "2024.01.13"]
[Round "1.6"]
[White "Agdelen, Huseyin Can"]
[Black "Morris, James"]
[Result "1/2-1/2"]
[ECO "B44"]
[WhiteElo "2409"]
[BlackElo "2416"]
[Annotator "ChessBase"]
[PlyCount "68"]
[EventDate "2024.01.10"]
[EventType "tourn"]
[EventCountry "CZE"]
[SourceTitle "playchess.com"]
[Source "ChessBase"]
[SourceQuality "1"]
[TimeControl "40/5400+30:1800+30"]

1. e4 {[%emt 0:07:55]} c5 {[%emt 0:00:00]} 2. Nf3 {[%emt 0:00:09]} e6 {[%emt 0:00:00]} 3. d4 {[%emt 0:00:05]} cxd4 {[%emt 0:00:00]} 4. Nxd4 {[%emt 0:00:08]} Nc6 {[%emt 0:00:18]} 5. a3 {[%emt 0:05:15]} Nf6 {[%emt 0:04:58]} 6. Nc3 {[%emt 0:00:08]} d6 {[%emt 0:01:42]} 7. Be3 {[%emt 0:03:14]} Bd7 {[%emt 0:00:31]} 8. f4 {[%emt 0:08:19]} Nxd4 {[%emt 0:06:57]} 9. Qxd4 {[%emt 0:06:15]} Bc6 {[%emt 0:03:34]} 10. O-O-O {[%emt 0:04:11]} Qa5 {[%emt 0:07:23]} 11. Be2 {[%emt 0:07:03]} Be7 {[%emt 0:05:50]} 12. g4 {[%emt 0:13:20]} O-O {[%emt 0:05:34]} 13. g5 {[%emt 0:06:17]} Nd7 {[%emt 0:00:04]} 14. Kb1 {[%emt 0:07:21]} b5 {[%emt 0:25:06]} 15. Bd2 {[%emt 0:05:45]} Qc7 {[%emt 0:05:15]} 16. Nxb5 {[%emt 0:05:58]} Qb8 {[%emt 0:00:38]} 17. Bc3 {[%emt 0:04:58]} e5 {[%emt 0:01:23]} 18. fxe5 {[%emt 0:01:44]} dxe5 {[%emt 0:00:56]} 19. Qc4 {[%emt 0:00:08]} Nb6 {[%emt 0:03:14]} 20. Qxc6 {[%emt 0:02:14]} Rc8 {[%emt 0:00:04]} 21. Nc7 {[%emt 0:00:04]} Rxc7 {[%emt 0:00:09]} 22. Qb5 {[%emt 0:00:01]} Rxc3 {[%emt 0:00:26]} 23. bxc3 {[%emt 0:00:14]} Na4 {[%emt 0:09:10]} 24. Qxb8+ {[%emt 0:04:44]} Rxb8+ {[%emt 0:00:02]} 25. Ka1 {[%emt 0:00:07]} Nxc3 {[%emt 0:02:25]} 26. Bc4 {[%emt 0:01:10]} Bxa3 {[%emt 0:03:04]} 27. Bb3 {[%emt 0:00:01]} Nxd1 {[%emt 0:08:52]} 28. Rxd1 {[%emt 0:00:03]} Bc5 {[%emt 0:01:45]} 29. Rd7 {[%emt 0:00:16]} Rf8 {[%emt 0:03:04]} 30. Ka2 {[%emt 0:07:42]} Be3 {[%emt 0:00:32]} 31. Bd5 {[%emt 0:00:21]} Bxg5 {[%emt 0:01:29]} 32. Rxa7 {[%emt 0:00:03]} Be3 {[%emt 0:00:08]} 33. Rc7 {[%emt 0:00:53]} Bb6 {[%emt 0:00:04]} 34. Re7 {[%emt 0:00:23]} Bc5 {[%emt 0:01:47]} 1/2-1/2

[Event "Marienbad A2-GM 2024"]
[Site "Marianske Lazne"]
[Date "2024.01.13"]
[Round "1.8"]
[White "Lalic, Bogdan"]
[Black "Besou, Hussain"]
[Result "1/2-1/2"]
[ECO "E15"]
[WhiteElo "2349"]
[BlackElo "2277"]
[Annotator "ChessBase"]
[PlyCount "76"]
[EventDate "2024.01.10"]
[EventType "tourn"]
[EventCountry "CZE"]
[SourceTitle "playchess.com"]
[Source "ChessBase"]
[SourceQuality "1"]
[TimeControl "40/5400+30:1800+30"]

1. d4 {[%emt 0:00:03]} Nf6 {[%emt 0:00:16]} 2. c4 {[%emt 0:00:08]} e6 {[%emt 0:00:15]} 3. Nf3 {[%emt 0:00:09]} b6 {[%emt 0:01:39]} 4. g3 {[%emt 0:00:13]} Ba6 {[%emt 0:00:17]} 5. b3 {[%emt 0:01:16]} Bb4+ {[%emt 0:00:35]} 6. Bd2 {[%emt 0:00:08]} Be7 {[%emt 0:00:09]} 7. Nc3 {[%emt 0:00:06]} d5 {[%emt 0:01:02]} 8. cxd5 {[%emt 0:00:12]} exd5 {[%emt 0:00:15]} 9. Bg2 {[%emt 0:00:12]} O-O {[%emt 0:01:13]} 10. O-O {[%emt 0:00:08]} Bb7 {[%emt 0:05:32]} 11. Rc1 {[%emt 0:01:43]} Re8 {[%emt 0:11:06]} 12. Ne5 {[%emt 0:04:15]} Nbd7 {[%emt 0:04:26]} 13. Nd3 {[%emt 0:08:05]} Nf8 {[%emt 0:08:35]} 14. Bg5 {[%emt 0:02:19]} Ne6 {[%emt 0:06:08]} 15. Bxf6 {[%emt 0:00:07]} Bxf6 {[%emt 0:00:04]} 16. e3 {[%emt 0:00:07]} Qd6 {[%emt 0:05:02]} 17. b4 {[%emt 0:00:45]} c6 {[%emt 0:03:54]} 18. Qb3 {[%emt 0:00:47]} b5 {[%emt 0:10:47]} 19. a4 {[%emt 0:02:16]} a6 {[%emt 0:00:25]} 20. Ra1 {[%emt 0:03:24]} h5 {[%emt 0:02:27]} 21. Ra2 {[%emt 0:06:51]} h4 {[%emt 0:04:58]} 22. Nb1 {[%emt 0:00:45]} Rad8 {[%emt 0:05:57]} 23. Qd1 {[%emt 0:00:19]} Bc8 {[%emt 0:01:15]} 24. Nd2 {[%emt 0:04:56]} hxg3 {[%emt 0:03:19]} 25. hxg3 {[%emt 0:00:06]} Ng5 {[%emt 0:00:25]} 26. Re1 {[%emt 0:00:37]} g6 {[%emt 0:03:14]} 27. Nc5 {[%emt 0:12:05]} Re7 {[%emt 0:05:16]} 28. axb5 {[%emt 0:00:23]} axb5 {[%emt 0:00:23]} 29. Qa1 {[%emt 0:07:48]} Kg7 {[%emt 0:04:11]} 30. Nf3 {[%emt 0:04:51]} Nxf3+ {[%emt 0:03:07]} 31. Bxf3 {[%emt 0:00:06]} Rde8 {[%emt 0:01:17]} 32. Bg2 {[%emt 0:04:57]} Bf5 {[%emt 0:00:54]} 33. Qc3 {[%emt 0:01:22]} Bg5 {[%emt 0:01:48]} 34. Ra3 {[%emt 0:07:42]} Qf6 {[%emt 0:02:38]} 35. Ra6 {[%emt 0:02:50]} Bc8 {[%emt 0:01:36]} 36. Rb6 {[%emt 0:02:38]} Qd6 {[%emt 0:00:38]} 37. Nd3 {[%emt 0:00:12]} Bb7 {[%emt 0:02:44]} 38. Nc5 {[%emt 0:05:44]} Bc8 {[%emt 0:00:13]} 1/2-1/2

[Event "Marienbad A2-GM 2024"]
[Site "Marianske Lazne"]
[Date "2024.01.13"]
[Round "1.9"]
[White "Raczek, Krzysztof"]
[Black "Can, Isik"]
[Result "1/2-1/2"]
[ECO "A09"]
[WhiteElo "2347"]
[BlackElo "2500"]
[Annotator "RC"]
[PlyCount "73"]
[EventDate "2024.01.10"]
[EventType "tourn"]
[EventCountry "CZE"]
[SourceTitle "playchess.com"]
[Source "ChessBase"]
[SourceQuality "1"]
[TimeControl "40/5400+30:1800+30"]

1. Nf3 {[%emt 0:00:04]} d5 {[%emt 0:00:05]} 2. c4 {[%emt 0:00:04]} d4 {[%emt 0:00:02]} 3. e3 {[%emt 0:00:04]} c5 {[%emt 0:01:08]} 4. b4 {[%emt 0:00:05]} dxe3 {[%emt 0:07:17]} 5. fxe3 {[%emt 0:00:03]} cxb4 {[%emt 0:00:04]} 6. a3 {[%emt 0:00:05]} e6 {[%emt 0:10:16]} 7. d4 {[%emt 0:09:23]} Nf6 {[%emt 0:02:28]} 8. Bd3 {[%emt 0:00:29]} Nc6 {[%emt 0:08:01]} 9. O-O {[%emt 0:01:35]} Be7 {[%emt 0:01:46]} 10. Nbd2 {[%emt 0:21:25]} O-O {[%emt 0:04:56]} 11. axb4 {[%emt 0:00:54]} Nxb4 {[%emt 0:02:42]} 12. Bb1 {[%emt 0:02:00]} b6 {[%emt 0:05:51]} 13. Bb2 {[%emt 0:14:41]} a5 {[%emt 0:07:30]} 14. e4 {[%emt 0:02:52]} Ba6 {[%emt 0:01:09]} 15. e5 {[%emt 0:04:16]} Nh5 {[%emt 0:03:25]} 16. Qe2 {[%emt 0:10:19]} Rc8 {[%emt 0:02:37]} 17. Qe3 {[%emt 0:06:19]} g6 {[%emt 0:02:10]} 18. Ne4 {[%emt 0:04:33]} Bxc4 {[%emt 0:28:37]} 19. Qh6 {[%emt 0:09:56]} f5 {[%emt 0:00:32]} 20. exf6 {[%emt 0:06:13]} Bxf6 {[%emt 0:00:01]} 21. Re1 {[%emt 0:02:36]} Bg7 {[%emt 0:01:04]} 22. Qd2 {[%emt 0:00:01]} Nf4 {[%emt 0:02:01]} 23. Ba3 {[%emt 0:02:00]} Qd7 {[%emt 0:04:31]} 24. Kh1 {[%emt 0:01:24]} h6 {[%emt 0:03:13]} 25. Bxb4 {[%emt 0:00:44]} axb4 {[%emt 0:00:01]} 26. Qxb4 {[%emt 0:00:02]} Rc6 {[%emt 0:01:25]} 27. Bc2 {[%emt 0:00:49]} Nd3 {[%emt 0:00:28]} 28. Bxd3 {[%emt 0:00:36]} Bxd3 {[%emt 0:00:01]} 29. Ne5 {[%emt 0:00:35]} Bxe5 {[%emt 0:00:14]} 30. dxe5 {[%emt 0:00:20]} Bxe4 {[%emt 0:01:17]} 31. Qxe4 {[%emt 0:00:03]} Kg7 {[%emt 0:00:11]} 32. Red1 {[%emt 0:00:50]} Qc7 {[%emt 0:00:41]} 33. Ra7 {[%emt 0:00:13]} Qxa7 {[%emt 0:00:15]} 34. Qxc6 {[%emt 0:00:01]} Qa6 {[%emt 0:00:55]} 35. Rg1 {[%emt 0:00:30]} Qe2 {[%emt 0:00:29]} 36. Qxe6 {[%emt 0:00:18]} b5 {[%emt 0:00:10]} 37. Qd6 {[%emt 0:00:34]} 1/2-1/2

[Event "Marienbad A2-GM 2024"]
[Site "Marianske Lazne"]
[Date "2024.01.13"]
[Round "1.10"]
[White "Nguyen, Alex Dac-Vuong"]
[Black "Braeuer, Franz"]
[Result "1/2-1/2"]
[ECO "C11"]
[WhiteElo "2347"]
[BlackElo "2428"]
[Annotator "ChessBase"]
[PlyCount "87"]
[EventDate "2024.01.10"]
[EventType "tourn"]
[EventCountry "CZE"]
[SourceTitle "playchess.com"]
[Source "ChessBase"]
[SourceQuality "1"]
[TimeControl "40/5400+30:1800+30"]

1. e4 {[%emt 0:00:04]} e6 {[%emt 0:00:21]} 2. d4 {[%emt 0:00:07]} d5 {[%emt 0:00:04]} 3. Nc3 {[%emt 0:00:04]} Nf6 {[%emt 0:00:03]} 4. e5 {[%emt 0:00:07]} Nfd7 {[%emt 0:00:03]} 5. f4 {[%emt 0:00:06]} c5 {[%emt 0:00:09]} 6. Nf3 {[%emt 0:00:05]} Nc6 {[%emt 0:00:02]} 7. Be3 {[%emt 0:00:06]} a6 {[%emt 0:00:29]} 8. Ne2 {[%emt 0:08:07]} Be7 {[%emt 0:08:50]} 9. c3 {[%emt 0:09:59]} b5 {[%emt 0:09:18]} 10. Rc1 {[%emt 0:11:54]} Nb6 {[%emt 0:07:17]} 11. b3 {[%emt 0:04:02]} c4 {[%emt 0:00:36]} 12. b4 {[%emt 0:00:50]} a5 {[%emt 0:00:47]} 13. a3 {[%emt 0:00:14]} Kd7 {[%emt 0:02:54]} 14. h4 {[%emt 0:04:13]} h5 {[%emt 0:06:26]} 15. Ng5 {[%emt 0:03:30]} Qg8 {[%emt 0:02:14]} 16. f5 {[%emt 0:08:52]} exf5 {[%emt 0:02:23]} 17. Nf4 {[%emt 0:00:12]} Kc7 {[%emt 0:03:12]} 18. Qf3 {[%emt 0:02:50]} Be6 {[%emt 0:14:52]} 19. Nxh5 {[%emt 0:01:20]} axb4 {[%emt 0:02:48]} 20. axb4 {[%emt 0:00:06]} Ra2 {[%emt 0:00:21]} 21. Be2 {[%emt 0:03:11]} Na4 {[%emt 0:06:33]} 22. Bd2 {[%emt 0:07:16]} Kb7 {[%emt 0:03:45]} 23. Rh3 {[%emt 0:01:03]} g6 {[%emt 0:05:45]} 24. Nf4 {[%emt 0:00:26]} Nb6 {[%emt 0:04:05]} 25. Qg3 {[%emt 0:01:53]} Bxg5 {[%emt 0:03:31]} 26. Qxg5 {[%emt 0:01:07]} Ra8 {[%emt 0:05:49]} 27. Bf3 {[%emt 0:03:46]} Qe8 {[%emt 0:02:49]} 28. h5 {[%emt 0:00:25]} gxh5 {[%emt 0:00:55]} 29. Nxh5 {[%emt 0:00:18]} Qg8 {[%emt 0:05:07]} 30. Ng7 {[%emt 0:09:00]} Rxh3 {[%emt 0:01:01]} 31. gxh3 {[%emt 0:00:05]} Qh7 {[%emt 0:00:03]} 32. Nh5 {[%emt 0:04:03]} Rg8 {[%emt 0:00:50]} 33. Nf6 {[%emt 0:00:52]} Qxh3 {[%emt 0:00:38]} 34. Qxg8 {[%emt 0:02:51]} Qxf3 {[%emt 0:00:02]} 35. Qg1 {[%emt 0:00:46]} Na4 {[%emt 0:01:08]} 36. Qf1 {[%emt 0:00:11]} Qg3+ {[%emt 0:00:49]} 37. Qf2 {[%emt 0:04:51]} Qh3 {[%emt 0:00:48]} 38. Qe3 {[%emt 0:05:12]} Qg2 {[%emt 0:01:02]} 39. Qe2 {[%emt 0:04:09]} Qg1+ {[%emt 0:00:53]} 40. Qf1 {[%emt 0:00:04]} Qg3+ {[%emt 0:00:35]} 41. Qf2 {[%emt 0:14:30]} Qh3 {[%emt 0:00:40]} 42. Qe3 {[%emt 0:05:38]} Qg2 {[%emt 0:03:27]} 43. Qg5 {[%emt 0:02:21]} Qf3 {[%emt 0:03:02]} 44. Qe3 {[%emt 0:00:07]} 1/2-1/2

[Event "Marienbad A2-GM 2024"]
[Site "Marianske Lazne"]
[Date "2024.01.14"]
[Round "2.6"]
[White "Morris, James"]
[Black "Braeuer, Franz"]
[Result "1/2-1/2"]
[ECO "C77"]
[WhiteElo "2416"]
[BlackElo "2428"]
[Annotator "RC"]
[PlyCount "65"]
[EventDate "2024.01.10"]
[EventType "tourn"]
[EventCountry "CZE"]
[SourceTitle "playchess.com"]
[Source "ChessBase"]
[SourceQuality "1"]
[TimeControl "40/5400+30:1800+30"]

1. e4 {[%emt 0:00:09]} e5 {[%emt 0:00:09]} 2. Nf3 {[%emt 0:01:11]} Nc6 {[%emt 0:00:05]} 3. Bb5 {[%emt 0:01:12]} a6 {[%emt 0:00:07]} 4. Ba4 {[%emt 0:00:03]} Nf6 {[%emt 0:00:05]} 5. d3 {[%emt 0:01:55]} d6 {[%emt 0:02:24]} 6. c4 {[%emt 0:03:36]} g6 {[%emt 0:05:11]} 7. d4 {[%emt 0:07:20]} exd4 {[%emt 0:18:19]} 8. Nxd4 {[%emt 0:00:23]} Bd7 {[%emt 0:00:25]} 9. Nc3 {[%emt 0:00:13]} Bg7 {[%emt 0:01:24]} 10. Nxc6 {[%emt 0:02:03]} bxc6 {[%emt 0:07:37]} 11. O-O {[%emt 0:01:11]} O-O {[%emt 0:04:07]} 12. Bg5 {[%emt 0:18:45]} h6 {[%emt 0:00:39]} 13. Bh4 {[%emt 0:00:20]} c5 {[%emt 0:09:11]} 14. Bxd7 {[%emt 0:04:43]} Qxd7 {[%emt 0:00:03]} 15. Rc1 {[%emt 0:12:56]} Rae8 {[%emt 0:10:34]} 16. f3 {[%emt 0:02:23]} Nh5 {[%emt 0:03:20]} 17. Bf2 {[%emt 0:01:09]} Qc6 {[%emt 0:02:31]} 18. Qd5 {[%emt 0:03:30]} Qb6 {[%emt 0:01:50]} 19. Qd2 {[%emt 0:00:18]} Kh7 {[%emt 0:02:28]} 20. Nd5 {[%emt 0:01:58]} Qxb2 {[%emt 0:10:46]} 21. Qxb2 {[%emt 0:00:05]} Bxb2 {[%emt 0:00:04]} 22. Rb1 {[%emt 0:00:09]} Rb8 {[%emt 0:03:16]} 23. Nxc7 {[%emt 0:08:44]} Nf4 {[%emt 0:00:28]} 24. Kh1 {[%emt 0:00:43]} Nd3 {[%emt 0:04:58]} 25. Bg3 {[%emt 0:02:00]} Be5 {[%emt 0:03:45]} 26. Nxa6 {[%emt 0:13:26]} Ra8 {[%emt 0:00:36]} 27. Rb6 {[%emt 0:00:37]} Ra7 {[%emt 0:00:55]} 28. Bxe5 {[%emt 0:07:55]} Nxe5 {[%emt 0:00:26]} 29. Rxd6 {[%emt 0:00:06]} Nxc4 {[%emt 0:00:24]} 30. Rc6 {[%emt 0:00:03]} Na5 {[%emt 0:01:29]} 31. Rb6 {[%emt 0:00:04]} Nc4 {[%emt 0:00:09]} 32. Rc6 {[%emt 0:00:02]} Na5 {[%emt 0:00:05]} 33. Rb6 {[%emt 0:02:06]} 1/2-1/2

[Event "Marienbad A2-GM 2024"]
[Site "Marianske Lazne"]
[Date "2024.01.14"]
[Round "2.7"]
[White "Can, Isik"]
[Black "Nguyen, Alex Dac-Vuong"]
[Result "1/2-1/2"]
[ECO "B19"]
[WhiteElo "2500"]
[BlackElo "2347"]
[Annotator "RC"]
[PlyCount "102"]
[EventDate "2024.01.10"]
[EventType "tourn"]
[EventCountry "CZE"]
[SourceTitle "playchess.com"]
[Source "ChessBase"]
[SourceQuality "1"]
[TimeControl "40/5400+30:1800+30"]

1. e4 {[%emt 0:00:04]} c6 {[%emt 0:00:06]} 2. d4 {[%emt 0:00:05]} d5 {[%emt 0:00:05]} 3. Nd2 {[%emt 0:00:04]} dxe4 {[%emt 0:00:06]} 4. Nxe4 {[%emt 0:00:08]} Bf5 {[%emt 0:00:08]} 5. Ng3 {[%emt 0:00:03]} Bg6 {[%emt 0:00:06]} 6. h4 {[%emt 0:00:05]} h6 {[%emt 0:00:07]} 7. Nf3 {[%emt 0:00:03]} Nd7 {[%emt 0:00:05]} 8. h5 {[%emt 0:00:04]} Bh7 {[%emt 0:00:04]} 9. Bd3 {[%emt 0:00:04]} Bxd3 {[%emt 0:00:05]} 10. Qxd3 {[%emt 0:00:04]} e6 {[%emt 0:00:07]} 11. Bd2 {[%emt 0:00:03]} Ngf6 {[%emt 0:00:07]} 12. O-O-O {[%emt 0:00:07]} Be7 {[%emt 0:00:04]} 13. Ne4 {[%emt 0:00:09]} Nxe4 {[%emt 0:00:20]} 14. Qxe4 {[%emt 0:00:05]} Nf6 {[%emt 0:00:03]} 15. Qe2 {[%emt 0:00:10]} Qd5 {[%emt 0:00:05]} 16. c4 {[%emt 0:00:03]} Qe4 {[%emt 0:00:06]} 17. Qxe4 {[%emt 0:00:04]} Nxe4 {[%emt 0:00:05]} 18. Be3 {[%emt 0:00:07]} f5 {[%emt 0:00:23]} 19. Rhe1 {[%emt 0:00:09]} O-O {[%emt 0:10:43]} 20. Kc2 {[%emt 0:01:41]} Rad8 {[%emt 0:07:10]} 21. Re2 {[%emt 0:07:29]} Rfe8 {[%emt 0:06:44]} 22. a4 {[%emt 0:15:40]} c5 {[%emt 0:13:31]} 23. dxc5 {[%emt 0:16:44]} Rxd1 {[%emt 0:00:12]} 24. Kxd1 {[%emt 0:00:02]} Bxc5 {[%emt 0:03:48]} 25. Bxc5 {[%emt 0:01:14]} Nxc5 {[%emt 0:00:07]} 26. a5 {[%emt 0:00:02]} Ne4 {[%emt 0:20:10]} 27. Kc2 {[%emt 0:08:12]} Rc8 {[%emt 0:04:35]} 28. Nd2 {[%emt 0:09:32]} Nxd2 {[%emt 0:08:44]} 29. Kxd2 {[%emt 0:01:23]} Rxc4 {[%emt 0:00:08]} 30. Rxe6 {[%emt 0:00:08]} Rc5 {[%emt 0:10:55]} 31. a6 {[%emt 0:15:28]} bxa6 {[%emt 0:05:42]} 32. Rxa6 {[%emt 0:00:06]} f4 {[%emt 0:00:06]} 33. Rxa7 {[%emt 0:05:01]} Rxh5 {[%emt 0:00:05]} 34. b4 {[%emt 0:02:43]} Rg5 {[%emt 0:00:26]} 35. Kc3 {[%emt 0:02:32]} Kf8 {[%emt 0:04:34]} 36. f3 {[%emt 0:08:41]} Ke8 {[%emt 0:00:56]} 37. Ra2 {[%emt 0:00:05]} Kd7 {[%emt 0:00:16]} 38. Kd4 {[%emt 0:00:53]} Rb5 {[%emt 0:03:30]} 39. Ra7+ {[%emt 0:05:53]} Kd6 {[%emt 0:01:27]} 40. Ra6+ {[%emt 0:02:03]} Ke7 {[%emt 0:02:51]} 41. Kc4 {[%emt 0:07:03]} Rg5 {[%emt 0:01:20]} 42. Ra2 {[%emt 0:00:12]} Kd6 {[%emt 0:00:47]} 43. Rc2 {[%emt 0:14:34]} Kc6 {[%emt 0:03:01]} 44. Kd4+ {[%emt 0:02:04]} Kb5 {[%emt 0:00:17]} 45. Rb2 {[%emt 0:03:37]} Rg3 {[%emt 0:01:09]} 46. Ke5 {[%emt 0:04:20]} g5 {[%emt 0:00:06]} 47. Kf6 {[%emt 0:03:24]} h5 {[%emt 0:00:11]} 48. Kf5 {[%emt 0:00:58]} h4 {[%emt 0:00:04]} 49. Ke4 {[%emt 0:00:10]} h3 {[%emt 0:00:38]} 50. gxh3 {[%emt 0:00:12]} Rxh3 {[%emt 0:00:06]} 51. Rg2 {[%emt 0:00:33]} Rg3 {[%emt 0:00:06]} 1/2-1/2

[Event "Marienbad A2-GM 2024"]
[Site "Marianske Lazne"]
[Date "2024.01.14"]
[Round "2.8"]
[White "Besou, Hussain"]
[Black "Raczek, Krzysztof"]
[Result "1/2-1/2"]
[ECO "D37"]
[WhiteElo "2277"]
[BlackElo "2347"]
[Annotator "ChessBase"]
[PlyCount "63"]
[EventDate "2024.01.10"]
[EventType "tourn"]
[EventCountry "CZE"]
[SourceTitle "playchess.com"]
[Source "ChessBase"]
[SourceQuality "1"]
[TimeControl "40/5400+30:1800+30"]

1. d4 {[%emt 0:00:02]} Nf6 {[%emt 0:00:07]} 2. c4 {[%emt 0:00:05]} e6 {[%emt 0:00:04]} 3. Nc3 {[%emt 0:00:15]} d5 {[%emt 0:02:20]} 4. Nf3 {[%emt 0:02:05]} a6 {[%emt 0:02:52]} 5. cxd5 {[%emt 0:02:45]} exd5 {[%emt 0:00:01]} 6. Bg5 {[%emt 0:00:10]} Be7 {[%emt 0:04:36]} 7. e3 {[%emt 0:00:30]} c6 {[%emt 0:01:23]} 8. Bd3 {[%emt 0:00:39]} O-O {[%emt 0:06:24]} 9. Qc2 {[%emt 0:03:55]} Nbd7 {[%emt 0:01:05]} 10. O-O {[%emt 0:00:44]} Re8 {[%emt 0:08:50]} 11. Rab1 {[%emt 0:02:27]} Nf8 {[%emt 0:02:13]} 12. b4 {[%emt 0:01:18]} Ng6 {[%emt 0:15:37]} 13. Bxf6 {[%emt 0:13:51]} Bxf6 {[%emt 0:00:17]} 14. Bf5 {[%emt 0:00:15]} Bxf5 {[%emt 0:12:01]} 15. Qxf5 {[%emt 0:00:08]} Ne7 {[%emt 0:00:02]} 16. Qc2 {[%emt 0:02:51]} Nc8 {[%emt 0:01:57]} 17. a4 {[%emt 0:06:42]} b5 {[%emt 0:11:20]} 18. axb5 {[%emt 0:12:11]} axb5 {[%emt 0:00:24]} 19. Ne2 {[%emt 0:01:20]} Ra6 {[%emt 0:03:20]} 20. Ra1 {[%emt 0:03:47]} Rb6 {[%emt 0:02:46]} 21. Ra8 {[%emt 0:05:06]} Qe7 {[%emt 0:05:27]} 22. Qc3 {[%emt 0:09:49]} Nd6 {[%emt 0:02:35]} 23. Rfa1 {[%emt 0:03:51]} Nc4 {[%emt 0:00:43]} 24. R1a7 {[%emt 0:01:58]} Qf8 {[%emt 0:01:09]} 25. Rxe8 {[%emt 0:02:51]} Qxe8 {[%emt 0:00:02]} 26. Nf4 {[%emt 0:03:15]} Rb8 {[%emt 0:03:14]} 27. Nd3 {[%emt 0:06:37]} h6 {[%emt 0:02:59]} 28. Nc5 {[%emt 0:01:58]} Be7 {[%emt 0:00:29]} 29. h3 {[%emt 0:03:16]} Bd6 {[%emt 0:00:20]} 30. Qc2 {[%emt 0:01:25]} Ra8 {[%emt 0:05:05]} 31. Qa2 {[%emt 0:03:43]} Rb8 {[%emt 0:01:57]} 32. Qc2 {[%emt 0:01:32]} 1/2-1/2

[Event "Marienbad A2-GM 2024"]
[Site "Marianske Lazne"]
[Date "2024.01.14"]
[Round "2.10"]
[White "Agdelen, Huseyin Can"]
[Black "Rasik, Vitezslav"]
[Result "1-0"]
[ECO "B08"]
[WhiteElo "2409"]
[BlackElo "2406"]
[Annotator "RC"]
[PlyCount "57"]
[EventDate "2024.01.10"]
[EventType "tourn"]
[EventCountry "CZE"]
[SourceTitle "playchess.com"]
[Source "ChessBase"]
[SourceQuality "1"]
[TimeControl "40/5400+30:1800+30"]

1. e4 {[%emt 0:07:54]} d6 {[%emt 0:00:39]} 2. d4 {[%emt 0:00:13]} g6 {[%emt 0:00:11]} 3. Nf3 {[%emt 0:00:51]} Nf6 {[%emt 0:00:29]} 4. Nc3 {[%emt 0:00:21]} Bg7 {[%emt 0:00:28]} 5. Be3 {[%emt 0:01:39]} O-O {[%emt 0:05:30]} 6. Qd2 {[%emt 0:01:39]} a6 {[%emt 0:01:40]} 7. Bh6 {[%emt 0:02:17]} b5 {[%emt 0:02:59]} 8. Bd3 {[%emt 0:02:28]} Nc6 {[%emt 0:22:57]} 9. Bxg7 {[%emt 0:04:54]} Kxg7 {[%emt 0:00:18]} 10. e5 {[%emt 0:00:32]} dxe5 {[%emt 0:10:14]} 11. dxe5 {[%emt 0:00:07]} Ng4 {[%emt 0:01:07]} 12. O-O-O {[%emt 0:00:56]} Ncxe5 {[%emt 0:03:15]} 13. Nxe5 {[%emt 0:00:49]} Nxe5 {[%emt 0:00:06]} 14. Qe2 {[%emt 0:00:07]} Nxd3+ {[%emt 0:06:06]} 15. Rxd3 {[%emt 0:04:42]} Qe8 {[%emt 0:00:04]} 16. Nd5 {[%emt 0:04:45]} Qc6 {[%emt 0:04:55]} 17. Rhd1 {[%emt 0:20:08]} Bf5 {[%emt 0:07:56]} 18. Rc3 {[%emt 0:07:26]} Qd6 {[%emt 0:01:22]} 19. Nxe7 {[%emt 0:15:06]} Qf6 {[%emt 0:12:55]} 20. Nd5 {[%emt 0:08:20]} Rfe8 {[%emt 0:06:39]} 21. Qd2 {[%emt 0:11:58]} Qe5 {[%emt 0:01:22]} 22. Re3 {[%emt 0:02:49]} Qxh2 {[%emt 0:02:08]} 23. Qd4+ {[%emt 0:00:22]} Kh6 {[%emt 0:00:49]} 24. Ne7 {[%emt 0:00:49]} Be6 {[%emt 0:02:45]} 25. Re4 {[%emt 0:00:26]} Kh5 {[%emt 0:04:11]} 26. g3 {[%emt 0:00:25]} g5 {[%emt 0:01:30]} 27. Qg7 {[%emt 0:00:34]} h6 {[%emt 0:00:31]} 28. Qe5 {[%emt 0:01:02]} Rxe7 {[%emt 0:00:53]} 29. g4+ {[%emt 0:00:02]} 1-0

[Event "Marienbad A2-GM 2024"]
[Site "Marianske Lazne"]
[Date "2024.01.15"]
[Round "3.6"]
[White "Rasik, Vitezslav"]
[Black "Morris, James"]
[Result "1/2-1/2"]
[ECO "B30"]
[WhiteElo "2406"]
[BlackElo "2416"]
[Annotator "ChessBase"]
[PlyCount "30"]
[EventDate "2024.01.10"]
[EventType "tourn"]
[EventCountry "CZE"]
[SourceTitle "playchess.com"]
[Source "ChessBase"]
[SourceQuality "1"]
[TimeControl "40/5400+30:1800+30"]

1. e4 {[%emt 0:00:04]} c5 {[%emt 0:00:06]} 2. Nf3 {[%emt 0:00:11]} Nc6 {[%emt 0:00:27]} 3. Bb5 {[%emt 0:00:32]} e6 {[%emt 0:00:28]} 4. O-O {[%emt 0:01:33]} Nge7 {[%emt 0:00:05]} 5. b3 {[%emt 0:01:15]} Nd4 {[%emt 0:11:51]} 6. Nxd4 {[%emt 0:00:44]} cxd4 {[%emt 0:00:03]} 7. c3 {[%emt 0:09:59]} a6 {[%emt 0:05:33]} 8. Bd3 {[%emt 0:04:46]} Nc6 {[%emt 0:00:25]} 9. cxd4 {[%emt 0:01:38]} d5 {[%emt 0:09:41]} 10. exd5 {[%emt 0:05:11]} Qxd5 {[%emt 0:11:10]} 11. Bb2 {[%emt 0:06:09]} Be7 {[%emt 0:00:11]} 12. Na3 {[%emt 0:11:28]} O-O {[%emt 0:12:32]} 13. Nc4 {[%emt 0:04:38]} Qd8 {[%emt 0:02:21]} 14. Qb1 {[%emt 0:06:34]} g6 {[%emt 0:09:47]} 15. d5 {[%emt 0:05:31]} exd5 {[%emt 0:03:08]} 1/2-1/2

[Event "Marienbad A2-GM 2024"]
[Site "Marianske Lazne"]
[Date "2024.01.15"]
[Round "3.7"]
[White "Lalic, Bogdan"]
[Black "Agdelen, Huseyin Can"]
[Result "1/2-1/2"]
[ECO "D30"]
[WhiteElo "2349"]
[BlackElo "2409"]
[Annotator "ChessBase"]
[PlyCount "29"]
[EventDate "2024.01.10"]
[EventType "tourn"]
[EventCountry "CZE"]
[SourceTitle "playchess.com"]
[Source "ChessBase"]
[SourceQuality "1"]
[TimeControl "40/5400+30:1800+30"]

1. d4 {[%emt 0:04:02]} d5 {[%emt 0:00:15]} 2. c4 {[%emt 0:00:12]} e6 {[%emt 0:00:24]} 3. Nf3 {[%emt 0:00:13]} Nf6 {[%emt 0:00:19]} 4. g3 {[%emt 0:00:29]} Bb4+ {[%emt 0:00:51]} 5. Bd2 {[%emt 0:00:12]} Be7 {[%emt 0:00:12]} 6. Bg2 {[%emt 0:00:12]} O-O {[%emt 0:00:44]} 7. O-O {[%emt 0:00:11]} c6 {[%emt 0:00:47]} 8. Qc2 {[%emt 0:00:15]} b6 {[%emt 0:00:56]} 9. Bf4 {[%emt 0:00:31]} Bb7 {[%emt 0:01:10]} 10. Rd1 {[%emt 0:01:02]} Nbd7 {[%emt 0:01:02]} 11. Nc3 {[%emt 0:00:25]} Nh5 {[%emt 0:02:12]} 12. Bc1 {[%emt 0:00:37]} Nhf6 {[%emt 0:00:29]} 13. Bf4 {[%emt 0:00:56]} Nh5 {[%emt 0:00:31]} 14. Bc1 {[%emt 0:00:11]} Nhf6 {[%emt 0:00:14]} 15. Bf4 {[%emt 0:00:13]} 1/2-1/2